fUSD/lending_fUSD_20251225
["ID","MTS","AMOUNT","RATE_DAILY","PERIOD"]
[399717965,1766634643257,-150.0,0.00015463,2]
[399717966,1766634643270,-150.0,0.00015466,2]
[399717967,1766634643280,-150.0,0.0001547,2]
[399717968,1766634643291,-156.10212865,0.00015476,2]
[399717969,1766634643302,-150.0,0.00015476,2]
[399717970,1766634643312,-150.0,0.00015482,2]
[399717971,1766634643323,-150.0,0.00015483,2]
[399717972,1766634643333,-150.0,0.00015489,2]
[399717973,1766634643343,-150.0,0.00015489,2]
[399717974,1766634643353,-156.10212865,0.00015494,2]
[399717975,1766634643363,-150.0,0.000155,2]
[399717976,1766634643372,-150.0,0.00015502,2]
[399717977,1766634643382,-150.0,0.00015506,2]
[399717978,1766634643392,-150.0,0.00015508,2]
[399717979,1766634643402,-156.10212865,0.00015511,2]
[399717980,1766634643413,-150.0,0.00015511,2]
[399717981,1766634643423,-150.0,0.00015514,2]
[399717982,1766634643440,-150.0,0.00015518,2]
[399717983,1766634643450,-150.0,0.00015522,2]
[399717984,1766634643459,-2078.41,0.00015525,2]
[399717985,1766634643469,-156.10212865,0.00015528,2]
[399717986,1766634643478,-150.0,0.0001553,2]
[399717988,1766634643488,-150.0,0.0001553,2]
[399717989,1766634643498,-150.0,0.0001553,2]
[399717990,1766634643508,-150.0,0.00015534,2]
[399717991,1766634643518,-150.0,0.00015539,2]
[399717993,1766634643527,-150.0,0.00015541,2]
[399717995,1766634643537,-156.10212865,0.00015545,2]
[399717996,1766634643547,-150.0,0.00015547,2]
[399717997,1766634643556,-150.0,0.00015549,2]
[399717998,1766634643566,-150.0,0.00015555,2]
[399717999,1766634643575,-150.0,0.00015556,2]
[399718000,1766634643585,-150.0,0.00015561,2]
[399718001,1766634643594,-150.0,0.00015561,2]
[399718002,1766634643610,-156.10212865,0.00015562,2]
[399718003,1766634643620,-1330.25645744,0.00015569,2]
[399718004,1766634643631,-150.0,0.00015571,2]
[399718005,1766634643640,-150.0,0.00015571,2]
[399718006,1766634643651,-150.0,0.00015576,2]
[399718007,1766634643661,-150.0,0.00015578,2]
[399718008,1766634643672,-150.0,0.00015579,2]
[399718009,1766634643683,-156.10212865,0.00015579,2]
[399718010,1766634643693,-150.0,0.00015581,2]
[399718011,1766634643704,-150.0,0.00015591,2]
[399718012,1766634643714,-156.10212865,0.00015597,2]
[399718013,1766634643724,-150.0,0.000156,2]
[399718014,1766634643735,-150.0,0.00015601,2]
[399718015,1766634643745,-150.0,0.00015602,2]
[399718016,1766634643755,-150.0,0.00015603,2]
[399718017,1766634643764,-150.0,0.00015604,2]
[399718018,1766634643774,-150.0,0.00015611,2]
[399718019,1766634643784,-156.10212865,0.00015614,2]
[399718020,1766634643794,-150.0,0.0001562,2]
[399718021,1766634643804,-150.0,0.00015621,2]
[399718022,1766634643814,-150.0,0.00015623,2]
[399718023,1766634643823,-200.0,0.00015624,2]
[399718024,1766634643833,-500.0,0.00015624,2]
[399718025,1766634643843,-200.0,0.00015624,2]
[399718026,1766634643854,-150.0,0.00015627,2]
[399718027,1766634643865,-150.0,0.00015627,2]
[399718028,1766634643875,-156.10212865,0.00015631,2]
[399718029,1766634643885,-150.0,0.00015633,2]
[399718030,1766634643896,-150.0,0.00015634,2]
[399718031,1766634643907,-150.0,0.00015639,2]
[399718032,1766634643917,-150.0,0.00015645,2]
[399718033,1766634643927,-156.10212865,0.00015648,2]
[399718034,1766634643938,-150.0,0.00015652,2]
[399718035,1766634643948,-150.0,0.00015652,2]
[399718036,1766634643962,-150.0,0.00015659,2]
[399718037,1766634643973,-150.0,0.00015662,2]
[399718038,1766634643984,-156.10212865,0.00015665,2]
[399718039,1766634643995,-150.0,0.00015665,2]
[399718040,1766634644010,-150.0,0.00015668,2]
[399718041,1766634644020,-150.0,0.00015676,2]
[399718042,1766634644031,-150.0,0.00015678,2]
[399718043,1766634644043,-150.0,0.0001568,2]
[399718044,1766634644054,-600.0,0.00015681,2]
[399718045,1766634644064,-150.0,0.00015682,2]
[399718046,1766634644075,-156.10212865,0.00015682,2]
[399718047,1766634644085,-150.0,0.00015684,2]
[399718048,1766634644096,-150.0,0.0001569,2]
[399718049,1766634644106,-150.0,0.00015691,2]
[399718050,1766634644119,-150.0,0.00015692,2]
[399718051,1766634644130,-755.58555115,0.00015695,2]
[399718052,1766634644140,-150.0,0.00015697,2]
[399718053,1766634644150,-196.97,0.00015697,2]
[399718054,1766634644160,-600.0,0.00015697,2]
[399718055,1766634644171,-150.0,0.00015698,2]
[399718056,1766634644182,-156.10212865,0.00015699,2]
[399718057,1766634644192,-150.0,0.000157,2]
[399718058,1766634644202,-218.75,0.00015701,2]
[399718059,1766634644213,-600.0,0.00015712,2]
[399718060,1766634644225,-150.0,0.00015712,2]
[399718061,1766634644236,-150.0,0.00015712,2]
[399718062,1766634644247,-150.0,0.00015712,2]
[399718063,1766634644257,-196.97,0.00015714,2]
[399718064,1766634644267,-156.10212865,0.00015717,2]
[399718065,1766634644277,-150.0,0.00015717,2]
[399718066,1766634644287,-150.0,0.0001572,2]
[399718067,1766634644298,-150.0,0.00015724,2]
[399718068,1766634644308,-150.0,0.00015728,2]
[399718069,1766634644318,-196.97,0.00015731,2]
[399718070,1766634644332,-156.10212865,0.00015734,2]
[399718071,1766634644342,-150.0,0.00015735,2]
[399718072,1766634644352,-150.0,0.00015737,2]
[399718073,1766634644362,-150.0,0.00015741,2]
[399718074,1766634644372,-150.0,0.00015743,2]
[399718075,1766634644383,-150.0,0.00015748,2]
[399718076,1766634644393,-150.0,0.00015749,2]
[399718077,1766634644403,-156.10212865,0.00015751,2]
[399718078,1766634644414,-150.0,0.00015756,2]
[399718079,1766634644424,-150.0,0.00015757,2]
[399718080,1766634644434,-150.0,0.0001576,2]
[399718081,1766634644445,-156.10212865,0.00015768,2]
[399718082,1766634644455,-150.0,0.00015773,2]
[399718083,1766634644465,-150.0,0.00015773,2]
[399718084,1766634644477,-150.0,0.00015773,2]
[399718085,1766634644488,-150.0,0.00015776,2]
[399718086,1766634644499,-150.0,0.00015777,2]
[399718087,1766634644509,-150.0,0.00015779,2]
[399718088,1766634644520,-156.10212865,0.00015785,2]
[399718089,1766634644536,-150.0,0.00015791,2]
[399718090,1766634644559,-150.0,0.00015795,2]
[399718091,1766634644579,-150.0,0.00015797,2]
[399718092,1766634644590,-150.0,0.00015797,2]
[399718093,1766634644600,-736.0,0.00015798,2]
[399718094,1766634644611,-2078.41,0.00015799,2]
[399718095,1766634644622,-150.0,0.00015802,2]
[399718096,1766634644633,-156.10212865,0.00015802,2]
[399718097,1766634644643,-150.0,0.00015803,2]
[399718098,1766634644654,-150.0,0.00015806,2]
[399718099,1766634644663,-150.0,0.0001581,2]
[399718100,1766634644674,-150.0,0.00015815,2]
[399718101,1766634644684,-156.10212865,0.0001582,2]
[399718102,1766634644695,-3430.64475743,0.00015821,2]
[399718103,1766634644706,-150.0,0.00015822,2]
[399718104,1766634644716,-150.0,0.00015822,2]
[399718105,1766634644727,-150.0,0.00015824,2]
[399718106,1766634644737,-150.0,0.00015834,2]
[399718107,1766634644747,-150.0,0.00015834,2]
[399718108,1766634644758,-150.0,0.00015835,2]
[399718109,1766634644768,-156.10212865,0.00015837,2]
[399718110,1766634644778,-150.0,0.00015846,2]
[399718111,1766634644788,-150.0,0.00015846,2]
[399718112,1766634644799,-156.10212865,0.00015854,2]
[399718113,1766634644809,-150.0,0.00015854,2]
[399718114,1766634644819,-150.0,0.00015854,2]
[399718115,1766634644829,-150.0,0.00015854,2]
[399718116,1766634644839,-150.0,0.00015854,2]
[399718117,1766634644849,-150.0,0.00015854,2]
[399718118,1766634644859,-150.0,0.00015863,2]
[399718119,1766634644869,-150.0,0.00015864,2]
[399718120,1766634644879,-507.63897613,0.00015864,2]
[399718121,1766634644890,-500.0,0.00015864,2]
[399718122,1766634644899,-500.0,0.00015864,2]
[399718123,1766634644910,-500.0,0.00015864,2]
[399718124,1766634644921,-786.09,0.00015864,2]
[399718125,1766634644931,-500.0,0.00015864,2]
[399718126,1766634644941,-150.0,0.00015869,2]
[399718127,1766634644951,-150.0,0.0001587,2]
[399718128,1766634644961,-156.10212865,0.00015871,2]
[399718129,1766634644971,-150.0,0.00015873,2]
[399718130,1766634644981,-150.0,0.00015885,2]
[399718131,1766634644991,-156.10212865,0.00015888,2]
[399718132,1766634645003,-150.0,0.00015891,2]
[399718133,1766634645015,-150.0,0.00015892,2]
[399718134,1766634645024,-150.0,0.00015893,2]
[399718135,1766634645034,-150.0,0.00015894,2]
[399718136,1766634645046,-150.0,0.00015894,2]
[399718137,1766634645056,-156.10212865,0.00015905,2]
[399718138,1766634645066,-150.0,0.00015911,2]
[399718139,1766634645079,-150.0,0.00015912,2]
[399718140,1766634645089,-150.0,0.00015913,2]
[399718141,1766634645099,-150.0,0.00015917,2]
[399718142,1766634645110,-150.0,0.00015919,2]
[399718143,1766634645120,-150.0,0.00015921,2]
[399718144,1766634645130,-156.10212865,0.00015923,2]
[399718145,1766634645140,-150.0,0.00015925,2]
[399718146,1766634645150,-150.0,0.00015932,2]
[399718147,1766634645160,-150.0,0.00015935,2]
[399718148,1766634645170,-150.0,0.00015936,2]
[399718149,1766634645180,-156.10212865,0.0001594,2]
[399718150,1766634645190,-150.0,0.00015941,2]
[399718151,1766634645200,-150.0,0.00015943,2]
[399718152,1766634645211,-150.0,0.00015948,2]
[399718153,1766634645221,-150.0,0.0001595,2]
[399718154,1766634645231,-150.0,0.00015952,2]
[399718155,1766634645242,-150.0,0.00015955,2]
[399718156,1766634645252,-156.10212865,0.00015957,2]
[399718157,1766634645262,-150.0,0.00015958,2]
[399718158,1766634645272,-10000.0,0.00015963,2]
[399718159,1766634645283,-150.0,0.00015967,2]
[399718160,1766634645293,-150.0,0.00015967,2]
[399718161,1766634645302,-150.0,0.00015971,2]
[399718162,1766634645312,-156.10212865,0.00015974,2]
[399718163,1766634645323,-150.0,0.00015979,2]
[399718164,1766634645333,-150.0,0.0001598,2]
[399718165,1766634645343,-150.0,0.00015981,2]
[399718166,1766634645354,-150.0,0.00015985,2]
[399718167,1766634645363,-150.0,0.00015991,2]
[399718168,1766634645373,-156.10212865,0.00015991,2]
[399718169,1766634645383,-150.0,0.00015991,2]
[399718170,1766634645393,-500.0,0.00015999,2]
[399718171,1766634645403,-510.32017252,0.00015999,2]
[399718172,1766634645413,-500.0,0.00015999,2]
[399718173,1766634645423,-500.0,0.00015999,2]
[399718174,1766634645433,-150.0,0.00016003,2]
[399718175,1766634645444,-150.0,0.00016007,2]
[399718176,1766634645454,-156.10212865,0.00016008,2]
[399718177,1766634645463,-150.0,0.0001601,2]
[399718178,1766634645473,-150.0,0.00016011,2]
[399718179,1766634645483,-150.0,0.00016016,2]
[399718180,1766634645493,-150.0,0.00016016,2]
[399718181,1766634645503,-150.0,0.00016016,2]
[399718182,1766634645513,-150.0,0.00016024,2]
[399718183,1766634645523,-150.0,0.00016025,2]
[399718184,1766634645533,-156.10212865,0.00016025,2]
[399718185,1766634645543,-150.0,0.0001603,2]
[399718186,1766634645553,-511.55,0.00016031,2]
[399718187,1766634645563,-565.0871574,0.00016031,2]
[399718188,1766634645573,-150.0,0.00016036,2]
[399718189,1766634645583,-3430.6447574,0.00016037,2]
[399718190,1766634645593,-250.0,0.00016037,2]
[399718191,1766634645841,-150.0,0.0001604,2]
[399718192,1766634645905,-156.10212865,0.00016043,2]
[399718193,1766634645916,-150.0,0.00016043,2]
[399718194,1766634645927,-150.0,0.00016046,2]
[399718195,1766634645937,-150.0,0.00016048,2]
[399718196,1766634645947,-150.0,0.00016049,2]
[399718197,1766634645956,-823.0,0.00016053,2]
[399718198,1766634645968,-823.0,0.00016053,2]
[399718199,1766634645978,-156.10212865,0.0001606,2]
[399718200,1766634645988,-150.0,0.00016064,2]
[399718201,1766634646001,-150.0,0.00016065,2]
[399718202,1766634646011,-150.0,0.00016069,2]
[399718203,1766634646022,-150.0,0.0001607,2]
[399718204,1766634646033,-150.0,0.00016072,2]
[399718205,1766634646044,-2078.41,0.00016073,2]
[399718206,1766634646054,-150.0,0.00016074,2]
[399718207,1766634646065,-150.0,0.00016076,2]
[399718208,1766634646077,-156.10212865,0.00016077,2]
[399718209,1766634646087,-150.0,0.0001608,2]
[399718210,1766634646097,-150.0,0.00016088,2]
[399718211,1766634646106,-150.0,0.00016088,2]
[399718212,1766634646116,-150.0,0.00016092,2]
[399718213,1766634646127,-150.0,0.00016094,2]
[399718214,1766634646137,-156.10212865,0.00016094,2]
[399718215,1766634646147,-150.0,0.00016097,2]
[399718216,1766634646156,-150.0,0.00016106,2]
[399718217,1766634646167,-150.0,0.00016107,2]
[399718218,1766634646176,-150.0,0.00016108,2]
[399718219,1766634646186,-156.10212865,0.00016111,2]
[399718220,1766634646195,-150.0,0.00016113,2]
[399718221,1766634646205,-150.0,0.00016115,2]
[399718222,1766634646215,-9999.99,0.00016116,2]
[399718223,1766634646225,-150.0,0.00016123,2]
[399718224,1766634646235,-150.0,0.00016127,2]
[399718225,1766634646245,-156.10212865,0.00016128,2]
[399718226,1766634646255,-150.0,0.00016137,2]
[399718227,1766634646266,-150.0,0.00016137,2]
[399718228,1766634646276,-150.0,0.00016137,2]
[399718229,1766634646285,-150.0,0.00016137,2]
[399718230,1766634646295,-150.0,0.00016137,2]
[399718231,1766634646305,-150.0,0.00016137,2]
[399718232,1766634646315,-150.0,0.00016137,2]
[399718233,1766634646325,-156.10212865,0.00016146,2]
[399718234,1766634646335,-150.0,0.00016147,2]
[399718235,1766634646345,-150.0,0.00016151,2]
[399718236,1766634646355,-3292.0,0.00016157,2]
[399718237,1766634646366,-150.0,0.00016159,2]
[399718238,1766634646376,-150.0,0.00016161,2]
[399718239,1766634646385,-156.10212865,0.00016163,2]
[399718240,1766634646395,-150.0,0.00016166,2]
[399718241,1766634646406,-150.0,0.00016167,2]
[399718242,1766634646415,-150.0,0.00016168,2]
[399718243,1766634646425,-200.0,0.00016172,2]
[399718244,1766634646435,-500.0,0.00016172,2]
[399718245,1766634646444,-200.0,0.00016172,2]
[399718246,1766634646454,-3292.0,0.00016177,2]
[399718247,1766634646464,-150.0,0.00016177,2]
[399718248,1766634646474,-156.10212865,0.0001618,2]
[399718249,1766634646485,-150.0,0.0001618,2]
[399718250,1766634646495,-150.0,0.00016182,2]
[399718251,1766634646505,-150.0,0.00016186,2]
[399718252,1766634646515,-150.0,0.00016186,2]
[399718253,1766634646525,-150.0,0.00016192,2]
[399718254,1766634646535,-150.0,0.00016192,2]
[399718255,1766634646545,-150.0,0.00016192,2]
[399718256,1766634646555,-150.0,0.00016192,2]
[399718257,1766634646565,-170.78,0.00016192,2]
[399718258,1766634646575,-150.0,0.00016192,2]
[399718259,1766634646585,-170.78,0.00016192,2]
[399718260,1766634646594,-150.0,0.00016192,2]
[399718261,1766634646604,-150.0,0.00016192,2]
[399718262,1766634646614,-170.78,0.00016192,2]
[399718263,1766634646624,-150.0,0.00016192,2]
[399718264,1766634646633,-150.0,0.00016192,2]
[399718265,1766634646643,-150.0,0.00016192,2]
[399718266,1766634646652,-150.0,0.00016192,2]
[399718267,1766634646662,-150.0,0.00016194,2]
[399718268,1766634646671,-156.10212865,0.00016197,2]
[399718269,1766634646682,-150.0,0.00016198,2]
[399718270,1766634646692,-150.0,0.000162,2]
[399718271,1766634646702,-150.0,0.00016202,2]
[399718272,1766634646712,-150.0,0.00016204,2]
[399718273,1766634646722,-150.0,0.00016205,2]
[399718274,1766634646733,-150.0,0.00016209,2]
[399718275,1766634646743,-150.0,0.0001621,2]
[399718276,1766634646753,-156.10212865,0.00016214,2]
[399718277,1766634646763,-150.0,0.00016225,2]
[399718278,1766634646773,-150.0,0.00016226,2]
[399718279,1766634646783,-150.0,0.00016228,2]
[399718280,1766634646794,-156.10212865,0.00016231,2]
[399718281,1766634646805,-150.0,0.00016231,2]
[399718282,1766634646815,-150.0,0.00016234,2]
[399718283,1766634646824,-1330.25645744,0.00016235,2]
[399718284,1766634646834,-150.0,0.00016238,2]
[399718285,1766634646844,-150.0,0.00016244,2]
[399718286,1766634646854,-156.10212865,0.00016249,2]
[399718287,1766634646864,-150.0,0.00016249,2]
[399718288,1766634646874,-150.0,0.0001625,2]
[399718289,1766634646883,-3430.6447574,0.00016253,2]
[399718290,1766634646894,-150.0,0.00016258,2]
[399718291,1766634646904,-150.0,0.00016258,2]
[399718292,1766634646914,-150.0,0.00016258,2]
[399718293,1766634646925,-150.0,0.00016263,2]
[399718294,1766634646934,-150.0,0.00016264,2]
[399718295,1766634646943,-156.10212865,0.00016266,2]
[399718296,1766634646954,-150.0,0.00016267,2]
[399718297,1766634646964,-150.0,0.00016271,2]
[399718298,1766634646974,-150.0,0.00016283,2]
[399718299,1766634646984,-156.10212865,0.00016283,2]
[399718300,1766634646993,-150.0,0.00016283,2]
[399718301,1766634647008,-150.0,0.00016289,2]
[399718302,1766634647018,-150.0,0.00016293,2]
[399718303,1766634647028,-150.0,0.00016294,2]
[399718304,1766634647039,-150.0,0.00016295,2]
[399718305,1766634647050,-156.10212865,0.000163,2]
[399718306,1766634647060,-150.0,0.00016303,2]
[399718307,1766634647070,-150.0,0.00016307,2]
[399718308,1766634647082,-150.0,0.00016307,2]
[399718309,1766634647092,-150.0,0.00016316,2]
[399718310,1766634647102,-156.10212865,0.00016317,2]
[399718311,1766634647112,-150.0,0.00016319,2]
[399718312,1766634647122,-150.0,0.00016322,2]
[399718313,1766634647132,-150.0,0.00016324,2]
[399718314,1766634647142,-150.0,0.00016326,2]
[399718315,1766634647151,-150.0,0.00016331,2]
[399718316,1766634647162,-150.0,0.00016333,2]
[399718317,1766634647171,-156.10212865,0.00016334,2]
[399718318,1766634647181,-150.0,0.00016338,2]
[399718319,1766634647191,-150.0,0.00016339,2]
[399718320,1766634647202,-150.0,0.00016342,2]
[399718321,1766634647213,-2078.41,0.00016347,2]
[399718322,1766634647223,-150.0,0.00016349,2]
[399718323,1766634647233,-156.10212865,0.00016351,2]
[399718324,1766634647243,-150.0,0.00016353,2]
[399718325,1766634647253,-150.0,0.00016355,2]
[399718326,1766634647263,-150.0,0.00016357,2]
[399718327,1766634647273,-150.0,0.0001636,2]
[399718328,1766634647283,-150.0,0.00016362,2]
[399718329,1766634647292,-150.0,0.00016363,2]
[399718330,1766634647302,-156.10212865,0.00016369,2]
[399718331,1766634647311,-151.0,0.00016379,2]
[399718332,1766634647321,-150.0,0.0001638,2]
[399718333,1766634647332,-150.0,0.0001638,2]
[399718334,1766634647342,-150.0,0.00016381,2]
[399718335,1766634647352,-150.0,0.00016382,2]
[399718336,1766634647362,-150.0,0.00016383,2]
[399718337,1766634647372,-156.10212865,0.00016386,2]
[399718338,1766634647382,-150.0,0.00016389,2]
[399718339,1766634647392,-228.0,0.000164,2]
[399718340,1766634647402,-319.0,0.000164,2]
[399718341,1766634647412,-182.0,0.000164,2]
[399718342,1766634647422,-184.24951816,0.000164,2]
[399718343,1766634647432,-150.0,0.00016401,2]
[399718344,1766634647442,-156.10212865,0.00016403,2]
[399718345,1766634647451,-150.0,0.00016404,2]
[399718346,1766634647462,-150.0,0.00016405,2]
[399718347,1766634647472,-150.0,0.0001641,2]
[399718348,1766634647481,-150.0,0.0001641,2]
[399718349,1766634647491,-156.10212865,0.0001642,2]
[399718350,1766634647501,-150.0,0.0001642,2]
[399718351,1766634647511,-150.0,0.0001642,2]
[399718352,1766634647521,-150.0,0.0001642,2]
[399718353,1766634647532,-150.0,0.0001642,2]
[399718354,1766634647542,-150.0,0.0001642,2]
[399718355,1766634647552,-150.0,0.00016428,2]
[399718356,1766634647562,-150.0,0.00016428,2]
[399718357,1766634647571,-500.0,0.00016437,2]
[399718358,1766634647581,-514.26394542,0.00016437,2]
[399718359,1766634647591,-511.55,0.00016437,2]
[399718360,1766634647601,-500.0,0.00016437,2]
[399718361,1766634647611,-500.0,0.00016437,2]
[399718362,1766634647621,-500.0,0.00016437,2]
[399718363,1766634647632,-500.0,0.00016437,2]
[399718364,1766634647642,-786.09,0.00016437,2]
[399718365,1766634647652,-500.0,0.00016437,2]
[399718366,1766634647662,-156.10212865,0.00016437,2]
[399718367,1766634647673,-500.0,0.00016438,2]
[399718368,1766634647682,-500.0,0.00016438,2]
[399718369,1766634647692,-500.0,0.00016438,2]
[399718370,1766634647702,-500.0,0.00016438,2]
[399718371,1766634647712,-500.0,0.00016438,2]
[399718372,1766634647722,-500.0,0.00016438,2]
[399718373,1766634647731,-500.0,0.00016438,2]
[399718374,1766634647741,-450.00000002,0.00016438,2]
[399718375,1766634647751,-500.0,0.00016438,2]
[399718376,1766634647760,-500.0,0.00016438,2]
[399718377,1766634647770,-626.05,0.00016438,2]
[399718378,1766634647780,-11555.64,0.00016438,2]
[399718379,1766634647789,-800.0,0.00016438,2]
[399718380,1766634647801,-150.0,0.00016439,2]
[399718381,1766634647811,-150.0,0.0001644,2]
[399718382,1766634647821,-150.0,0.0001644,2]
[399718383,1766634647832,-150.0,0.0001645,2]
[399718384,1766634647842,-150.0,0.00016452,2]
[399718385,1766634647852,-150.0,0.00016452,2]
[399718386,1766634647862,-156.10212865,0.00016454,2]
[399718387,1766634647872,-150.0,0.00016459,2]
[399718388,1766634647883,-150.0,0.00016464,2]
[399718389,1766634647893,-150.0,0.00016468,2]
[399718390,1766634647903,-3430.6447574,0.00016468,2]
[399718391,1766634647912,-150.0,0.00016471,2]
[399718392,1766634647923,-156.10212865,0.00016472,2]
[399718393,1766634647933,-150.0,0.00016472,2]
[399718394,1766634647943,-150.0,0.00016477,2]
[399718395,1766634647953,-150.0,0.00016477,2]
[399718396,1766634647963,-150.0,0.00016479,2]
[399718397,1766634647973,-150.0,0.00016483,2]
[399718398,1766634647983,-156.10212865,0.00016489,2]
[399718399,1766634647993,-150.0,0.00016495,2]
[399718400,1766634648005,-150.0,0.00016497,2]
[399718401,1766634648015,-150.0,0.00016498,2]
[399718402,1766634648026,-150.0,0.00016501,2]
[399718403,1766634648036,-150.0,0.00016501,2]
[399718404,1766634648048,-150.0,0.00016501,2]
[399718405,1766634648059,-156.10212865,0.00016506,2]
[399718406,1766634648069,-150.0,0.00016514,2]
[399718407,1766634648079,-150.0,0.00016517,2]
[399718408,1766634648090,-150.0,0.00016518,2]
[399718409,1766634648101,-156.10212865,0.00016523,2]
[399718410,1766634648111,-150.0,0.00016525,2]
[399718411,1766634648121,-150.0,0.00016526,2]
[399718412,1766634648131,-150.0,0.00016531,2]
[399718413,1766634648142,-150.0,0.00016533,2]
[399718414,1766634648152,-150.0,0.00016537,2]
[399718415,1766634648162,-150.0,0.00016539,2]
[399718416,1766634648173,-156.10212865,0.0001654,2]
[399718417,1766634648184,-150.0,0.00016546,2]
[399718418,1766634648194,-150.0,0.0001655,2]
[399718419,1766634648203,-150.0,0.00016554,2]
[399718420,1766634648213,-150.0,0.00016557,2]
[399718421,1766634648223,-156.10212865,0.00016557,2]
[399718422,1766634648232,-755.58555115,0.00016558,2]
[399718423,1766634648243,-150.0,0.00016562,2]
[399718424,1766634648253,-150.0,0.00016562,2]
[399718425,1766634648264,-150.0,0.00016562,2]
[399718426,1766634648274,-150.0,0.00016574,2]
[399718427,1766634648284,-156.10212865,0.00016575,2]
[399718428,1766634648294,-150.0,0.00016576,2]
[399718429,1766634648305,-150.0,0.00016577,2]
[399718430,1766634648316,-150.0,0.00016582,2]
[399718431,1766634648325,-150.0,0.00016583,2]
[399718432,1766634648335,-150.0,0.00016584,2]
[399718433,1766634648346,-150.0,0.0001659,2]
[399718434,1766634648356,-156.10212865,0.00016592,2]
[399718435,1766634648422,-150.0,0.00016592,2]
[399718436,1766634648433,-150.0,0.00016594,2]
[399718437,1766634648443,-150.0,0.00016596,2]
[399718438,1766634648453,-150.0,0.00016598,2]
[399718439,1766634648463,-150.0,0.00016606,2]
[399718440,1766634648473,-156.10212865,0.00016609,2]
[399718441,1766634648483,-150.0,0.00016609,2]
[399718442,1766634648492,-150.0,0.00016612,2]
[399718443,1766634648502,-150.0,0.00016615,2]
[399718444,1766634648511,-2078.41,0.00016621,2]
[399718445,1766634648521,-150.0,0.00016622,2]
[399718446,1766634648531,-150.0,0.00016622,2]
[399718447,1766634648541,-156.10212865,0.00016626,2]
[399718448,1766634648551,-150.0,0.00016629,2]
[399718449,1766634648561,-150.0,0.00016635,2]
[399718450,1766634648571,-150.0,0.0001664,2]
[399718451,1766634648582,-150.0,0.00016641,2]
[399718452,1766634648592,-156.10212865,0.00016643,2]
[399718453,1766634648602,-150.0,0.00016647,2]
[399718454,1766634648612,-150.0,0.00016647,2]
[399718455,1766634648622,-150.0,0.00016651,2]
[399718456,1766634648632,-150.0,0.00016653,2]
[399718457,1766634648642,-150.0,0.00016654,2]
[399718458,1766634648652,-156.10212865,0.0001666,2]
[399718459,1766634648662,-150.0,0.00016663,2]
[399718460,1766634648672,-150.0,0.0001667,2]
[399718461,1766634648683,-150.0,0.00016671,2]
[399718462,1766634648693,-150.0,0.00016672,2]
[399718463,1766634648705,-150.0,0.00016673,2]
[399718464,1766634648714,-150.0,0.00016674,2]
[399718465,1766634648724,-156.10212865,0.00016677,2]
[399718466,1766634648733,-150.0,0.00016683,2]
[399718467,1766634648743,-3430.6447574,0.00016684,2]